bitfinex-derivatives/quotes_ETHF0:USTF0_20210405
["timestamp","ask_amount","ask_price","bid_price","bid_amount"]
[1617645327115,71.55829379,2106.5,2106.4,1.95]
[1617645327314,68.65134379,2106.5,2106.4,1.95]
[1617645327516,68.62346965,2106.5,2106.4,1.95]
[1617645327815,68.5956,2106.5,2106.4,1.95]
[1617645328015,1.9778,2106.5,2106.4,1.95]
[1617645328217,0.02786852,2106.7,2106.4,1.95]
[1617645328418,0.02786852,2106.7,2106.4,68.9063]
[1617645328618,0.02788838,2106.6,2106.4,68.9063]
[1617645329620,0.02788838,2106.6,2106.4,1.95]
[1617645329819,0.02789053,2106.5,2106.4,1.95]
[1617645330019,2.00549053,2106.5,2106.4,1.95]
[1617645330219,1.9776,2106.5,2106.4,1.95]
[1617645330620,2.42389652,2106.5,2106.4,1.95]
[1617645330819,66.5842,2106.3,2105.3,5.97]
[1617645331019,66.5842,2106.3,2105.2,67.5531]
[1617645331221,0.02789334,2106.1,2105.2,67.5531]
[1617645331420,0.02789334,2106.1,2106.0,2.90695]
[1617645331822,0.02789334,2106.1,2106.0,8.74695]
[1617645332521,2.93484296,2106.2,2106.0,8.74695]
[1617645334023,2.90695,2106.2,2106.0,8.74695]
[1617645335427,2.93484238,2106.2,2106.0,8.74695]
[1617645338132,0.02789995,2106.1,2106.0,8.74695]
[1617645340633,2.93484358,2106.2,2106.0,8.74695]
[1617645341335,0.027894,2106.1,2106.0,8.74695]
[1617645341736,2.93484394,2106.2,2106.0,8.74695]
[1617645343237,0.02789423,2106.1,2106.0,8.74695]
[1617645344237,0.02789423,2106.1,2106.0,86.73475]
[1617645345138,2.93484395,2106.2,2106.0,86.73475]
[1617645345840,2.93484395,2106.2,2106.0,88.86365]
[1617645346938,2.90695,2106.2,2106.0,88.86365]
[1617645347640,2.93484316,2106.2,2106.0,88.86365]
[1617645347838,2.93484316,2106.2,2106.0,86.73475]
[1617645349739,0.02790293,2106.1,2106.0,86.73475]
[1617645351343,0.05580864,2106.1,2106.0,86.73475]
[1617645352244,2.90695,2106.2,2106.0,86.73475]
[1617645352647,0.05581788,2106.1,2106.0,86.73475]
[1617645357451,2.90695,2106.2,2106.0,86.73475]
[1617645358651,0.05581889,2106.1,2106.0,86.73475]
[1617645360254,2.90695,2106.2,2106.0,86.73475]
[1617645360455,2.90695,2106.2,2106.0,89.42935]
[1617645360654,0.05583927,2106.1,2106.0,89.42935]
[1617645361255,2.90695,2106.2,2106.0,89.42935]
[1617645361455,2.90695,2106.2,2106.0,86.73475]
[1617645362356,3.35368383,2106.2,2106.0,86.73475]
[1617645363257,0.44720823,2106.1,2106.0,86.73475]
[1617645363658,2.90695,2106.2,2106.0,86.73475]
[1617645364058,0.44721122,2106.1,2106.0,86.73475]
[1617645364757,3.57787801,2106.2,2106.0,86.73475]
[1617645367760,2.90695,2106.2,2106.0,86.73475]
[1617645368165,3.57787817,2106.2,2106.0,86.73475]
[1617645369965,2.90695,2106.2,2106.0,86.73475]
[1617645370265,3.57788442,2106.2,2106.0,86.73475]
[1617645371065,4.53058442,2106.2,2106.0,86.73475]
[1617645371267,3.57788442,2106.2,2106.0,86.73475]
[1617645371967,0.44727589,2106.1,2106.0,86.73475]
[1617645374069,3.57788246,2106.2,2106.0,86.73475]
[1617645374471,0.67149876,2106.1,2106.0,86.73475]
[1617645375574,2.90695,2106.2,2106.0,86.73475]
[1617645375976,0.67147633,2106.1,2106.0,86.73475]
[1617645377078,0.67147633,2106.1,2106.0,8.74695]
[1617645378282,3.80224516,2106.2,2106.0,8.74695]
[1617645378682,0.67146999,2106.1,2106.0,8.74695]
[1617645379283,0.44760874,2106.1,2106.0,8.74695]
[1617645380083,0.13986728,2106.1,2106.0,8.74695]
[1617645380885,0.05594548,2106.1,2106.0,8.74695]
[1617645382890,0.05594548,2106.1,2106.0,10.74695]
[1617645383493,0.02797127,2106.1,2106.0,10.74695]
[1617645384092,0.02797109,2106.2,2106.0,10.74695]
[1617645384291,0.02797109,2106.2,2106.1,57.4031]
[1617645384492,0.02797109,2106.2,2106.1,59.4031]
[1617645384791,0.02797109,2106.2,2106.1,65.1331]
[1617645385193,0.05594308,2106.2,2106.1,7.73]
[1617645385997,0.0279522,2106.4,2106.1,7.73]
[1617645386196,0.02794686,2106.5,2106.1,7.73]
[1617645387398,0.02794686,2106.5,2106.3,62.6078]
[1617645387796,0.02794686,2106.5,2106.4,5.79]
[1617645387999,0.02794686,2106.5,2106.4,8.69695]
[1617645388900,0.05589603,2106.5,2106.4,8.69695]
[1617645389300,0.1397436,2106.5,2106.4,8.69695]
[1617645389999,0.13974444,2106.6,2106.4,8.69695]
[1617645390299,0.13974875,2106.5,2106.4,8.69695]
[1617645391106,0.27951298,2106.5,2106.4,8.69695]
[1617645392604,0.13975401,2106.5,2106.4,8.69695]
[1617645393206,0.27950792,2106.5,2106.4,8.69695]
[1617645393608,0.13975228,2106.5,2106.4,8.69695]
[1617645394307,0.27951784,2106.5,2106.4,8.69695]
[1617645394506,2.90695,2106.6,2106.4,8.69695]
[1617645394810,0.44723973,2106.5,2106.4,8.69695]
[1617645396214,3.57784606,2106.6,2106.4,8.69695]
[1617645396615,3.57784606,2106.6,2106.4,5.79]
[1617645397010,0.67105409,2106.5,2105.9,5.75]
[1617645397412,0.05592204,2106.0,2105.8,75.3388]
[1617645397813,0.13980503,2106.0,2105.9,5.69]
[1617645398015,3.04675503,2106.0,2105.9,8.59695]
[1617645398213,2.90695,2106.0,2105.9,2.90695]
[1617645398413,2.90695,2106.0,2105.9,8.78695]
[1617645398614,0.05592052,2106.0,2105.9,8.78695]
[1617645399113,0.05591946,2106.1,2105.9,8.78695]
[1617645399615,0.02795939,2106.0,2105.9,8.78695]
[1617645401323,0.05591986,2106.0,2105.9,8.78695]
[1617645402418,0.05591897,2106.1,2105.9,8.78695]
[1617645402819,0.02795873,2106.0,2105.9,8.78695]
[1617645404022,0.05593713,2106.0,2105.9,8.78695]
[1617645407624,0.13984542,2106.0,2105.9,8.78695]
[1617645409424,0.05594736,2106.0,2105.9,8.78695]
[1617645409827,0.2797368,2106.2,2105.9,8.78695]
[1617645414633,0.40731569,2106.3,2105.9,8.78695]
[1617645414834,79.52971833,2106.5,2105.9,8.78695]
[1617645414835,78.85835,2106.5,2105.9,8.78695]
[1617645415035,0.02797318,2106.0,2105.9,8.78695]
[1617645415436,78.85835,2106.5,2105.9,8.78695]
[1617645416037,78.85835,2106.5,2106.4,2.90695]
[1617645416236,79.52961012,2106.5,2106.4,2.90695]
[1617645416537,79.52961012,2106.5,2106.4,8.70695]
[1617645416739,79.52961012,2106.5,2106.4,5.8]
[1617645416937,78.85835,2106.5,2106.4,5.8]
[1617645417137,78.85835,2106.5,2105.9,5.96]
[1617645417539,78.85835,2106.5,2106.4,5.79]
[1617645417737,78.85835,2106.5,2105.9,5.87]
[1617645418138,75.9514,2106.5,2106.4,5.73]
[1617645418339,75.9514,2106.5,2106.1,2.90695]
[1617645418539,75.9514,2106.5,2106.2,5.71]
[1617645418740,75.9514,2106.5,2106.4,5.84]
[1617645418939,75.9514,2106.5,2106.3,0.9363]
[1617645419138,0.84153117,2106.4,2106.3,5.75]
[1617645419539,0.84153117,2106.4,2106.1,2.90695]
[1617645419840,0.84153117,2106.4,2106.3,5.95]
[1617645420240,3.74848117,2106.4,2106.2,5.96]
[1617645420441,3.74848117,2106.4,2106.3,5.78]
[1617645420641,2.90695,2106.4,2106.3,5.78]
[1617645420841,2.90695,2106.4,2106.2,5.94]
[1617645421041,2.90695,2106.4,2106.3,5.87]
[1617645421442,2.90695,2106.4,2106.2,5.78]
[1617645421644,2.90695,2106.4,2106.1,2.90695]
[1617645421845,2.90695,2106.4,2106.3,5.88]
[1617645422043,2.90695,2106.4,2106.2,5.89]
[1617645422245,2.90695,2106.4,2106.1,2.90695]
[1617645422443,2.90695,2106.4,2106.3,5.71]
[1617645422643,2.90695,2106.4,2106.2,5.73]
[1617645423049,2.90695,2106.4,2106.3,5.75]
[1617645423243,2.90695,2106.4,2106.2,5.72]
[1617645423746,2.90695,2106.4,2106.3,5.93]
[1617645423944,2.90695,2106.4,2106.2,5.91]
[1617645424144,2.90695,2106.4,2106.3,72.2381]
[1617645424345,2.90695,2106.4,2106.3,78.2081]
[1617645424544,2.90695,2106.4,2106.3,72.2381]
[1617645424745,0.6713903,2106.5,2106.3,74.8716]
[1617645424949,0.6713903,2106.5,2106.3,80.7816]
[1617645425549,0.67135402,2106.6,2106.3,80.7816]
[1617645426149,0.67135402,2106.6,2106.5,2.90695]
[1617645426749,0.67135402,2106.6,2106.5,8.85695]
[1617645426750,1.51285608,2106.6,2106.5,8.85695]
[1617645426951,1.51285608,2106.6,2106.5,8.83695]
[1617645428353,0.84150206,2106.6,2106.5,8.83695]
[1617645428853,0.84150206,2106.6,2106.5,10.94025]
[1617645429053,1.51272557,2106.6,2106.5,10.94025]
[1617645429353,3.57816583,2106.7,2106.5,10.94025]
[1617645429854,0.67125028,2106.6,2106.5,10.94025]
[1617645430053,0.67125028,2106.6,2106.5,8.83695]
[1617645431656,3.80197856,2106.7,2106.5,8.83695]
[1617645433159,2.90695,2106.7,2106.5,8.83695]
[1617645433758,0.67124607,2106.6,2106.5,8.83695]
[1617645434158,3.57818076,2106.7,2106.5,8.83695]
[1617645434358,3.57818076,2106.7,2106.6,75.5441]
[1617645434758,3.57818076,2106.7,2106.6,81.4641]
[1617645435459,3.57818076,2106.7,2106.6,84.0296]
[1617645436462,0.67122301,2106.8,2106.6,84.0296]
[1617645436662,0.67122301,2106.8,2106.6,8.4855]
[1617645436863,0.67118713,2107.0,2106.8,66.8029]
[1617645437363,21.89657573,2107.1,2106.9,5.87]
[1617645437963,21.2254,2107.1,2106.9,5.87]
[1617645438163,24.13235,2107.1,2107.0,2.90695]
[1617645438564,24.13235,2107.1,2107.0,8.66695]
[1617645438763,21.2254,2107.1,2107.0,8.66695]
[1617645438964,21.2254,2107.1,2107.0,10.66695]
[1617645440464,21.25330607,2107.1,2107.0,10.66695]
[1617645443871,21.23935266,2107.1,2107.0,10.66695]
[1617645444569,21.23935266,2107.1,2107.0,11.60865]
[1617645444770,21.23935266,2107.1,2107.0,10.66695]
[1617645446372,21.25330663,2107.1,2107.0,10.66695]
[1617645446773,21.2254,2107.1,2107.0,10.66695]
[1617645447171,21.25330698,2107.1,2107.0,10.66695]
[1617645449576,21.2254,2107.1,2107.0,10.66695]
[1617645451379,21.2254,2107.1,2107.0,68.24545]
[1617645451578,21.25329587,2107.1,2107.0,68.24545]
[1617645452078,21.2254,2107.1,2107.0,68.24545]
[1617645452478,21.25329648,2107.1,2107.0,68.24545]
[1617645453078,21.2254,2107.1,2107.0,68.24545]
[1617645453278,21.2254,2107.1,2107.0,70.08645]
[1617645453479,21.2532959,2107.1,2107.0,70.08645]
[1617645454379,21.2254,2107.1,2107.0,68.24545]
[1617645454981,21.2254,2107.1,2107.0,66.24545]
[1617645456383,24.13235,2107.1,2107.0,66.24545]
[1617645456784,21.2254,2107.1,2107.0,66.24545]
[1617645457183,21.25330073,2107.1,2107.0,66.24545]
[1617645457384,21.25330073,2107.1,2107.0,69.09385]
[1617645458385,21.25330073,2107.1,2107.0,11.51535]
[1617645458585,21.25330073,2107.1,2107.0,13.51535]
[1617645458786,21.2393493,2107.1,2107.0,13.51535]
[1617645458986,21.2254,2107.1,2107.0,13.51535]
[1617645459385,20.1509,2107.1,2107.0,13.51535]
[1617645459786,19.8176,2107.1,2107.0,13.51535]
[1617645465592,19.8176,2107.1,2107.0,10.66695]
[1617645470201,19.5666,2107.1,2107.0,10.66695]
[1617645470404,18.8976,2107.1,2107.0,10.66695]
[1617645472306,18.8976,2107.1,2107.0,77.89695]
[1617645476612,18.8976,2107.1,2107.0,10.66695]
[1617645478015,18.8976,2107.1,2107.0,8.66695]
[1617645481218,18.8976,2107.1,2107.0,5.76]
[1617645481817,18.8976,2107.1,2106.9,5.85]
[1617645482017,18.8976,2107.1,2107.0,5.93]
[1617645482217,18.8976,2107.1,2106.9,0.9525]
[1617645482617,18.8976,2107.1,2107.0,8.74695]
[1617645482819,18.8976,2107.1,2107.0,2.90695]
[1617645483018,18.8976,2107.1,2107.0,4.90695]
[1617645483218,18.8976,2107.1,2107.0,10.79695]
[1617645483620,18.8976,2107.1,2107.0,11.75785]
[1617645484020,18.8286,2107.1,2107.0,11.75785]
[1617645485623,17.9442,2107.1,2107.0,11.75785]
[1617645488223,14.4448,2107.1,2107.0,11.75785]
[1617645488425,13.4939,2107.1,2107.0,11.75785]
[1617645488825,12.5579,2107.1,2107.0,11.75785]
[1617645489026,11.0,2107.1,2107.0,11.75785]
[1617645489223,9.3146,2107.1,2107.0,11.75785]
[1617645489626,9.1996,2107.1,2107.0,11.75785]
[1617645489826,8.9846,2107.1,2107.0,11.75785]
[1617645490027,8.911,2107.1,2107.0,11.75785]
[1617645490226,8.0275,2107.1,2107.0,11.75785]
[1617645490426,6.6392,2107.1,2107.0,11.75785]
[1617645490627,6.582,2107.1,2107.0,11.75785]
[1617645491227,5.4613,2107.1,2107.0,11.75785]
[1617645491631,4.4697,2107.1,2107.0,11.75785]
[1617645491829,3.5298,2107.1,2107.0,11.75785]
[1617645492627,3.4367,2107.1,2107.0,11.75785]
[1617645494029,3.4367,2107.1,2107.0,104.03705]
[1617645494231,3.4367,2107.1,2107.0,11.75785]
[1617645494831,2.4966,2107.1,2107.0,11.75785]
[1617645495838,1.5466,2107.1,2107.0,11.75785]
[1617645501741,1.0595,2107.1,2107.0,11.75785]
[1617645504745,2.2567,2108.5,2107.0,11.75785]
[1617645504946,2.2567,2108.5,2107.7,61.7116]
[1617645505348,2.2567,2108.5,2107.8,5.88]
[1617645506149,2.90695,2108.9,2107.8,5.88]
[1617645506649,0.01388353,2109.1,2108.7,2.90695]
[1617645507053,0.01388353,2109.1,2108.8,5.73]
[1617645507250,0.01388293,2109.2,2108.8,5.73]
[1617645508152,0.01389879,2109.0,2108.8,5.73]
[1617645508752,2.90695,2108.9,2108.8,5.73]
[1617645508952,2.92084911,2108.9,2108.8,5.73]
[1617645509152,2.90695,2108.9,2108.8,5.73]
[1617645509852,2.90695,2108.9,2108.8,61.3781]
[1617645510552,2.90695,2108.9,2108.8,5.73]
[1617645515460,4.79715,2108.9,2108.8,5.73]
[1617645516862,2.90695,2108.9,2108.8,5.73]
[1617645519668,2.93476927,2108.9,2108.8,5.73]
[1617645520670,4.93476927,2108.9,2108.8,5.73]
[1617645520872,4.90695,2108.9,2108.8,5.73]
[1617645521071,4.90695,2108.9,2108.2,2.90695]
[1617645521276,4.90695,2108.9,2108.8,5.82]
[1617645521677,0.01390905,2108.4,2108.3,0.45]
[1617645521873,2.43120905,2108.4,2108.2,2.90695]
[1617645522274,2.43120905,2108.4,2108.3,5.9]
[1617645522874,5.33815905,2108.4,2108.3,5.9]
[1617645523074,5.32425,2108.4,2107.5,2.90695]
[1617645523276,5.32425,2108.4,2107.6,5.88]
[1617645523474,5.35207029,2108.4,2108.3,5.88]
[1617645523674,5.35207029,2108.4,2107.5,2.90695]
[1617645523675,0.01391035,2108.3,2107.7,0.9426]
[1617645523876,0.01391035,2108.3,2107.7,5.83]
[1617645524275,0.01391035,2108.3,2107.6,5.78]
[1617645524475,0.01391035,2108.3,2107.8,5.83]
[1617645524876,79.7132,2107.8,2107.6,5.82]
[1617645525083,81.6673,2107.8,2107.5,2.90695]
[1617645525280,81.6673,2107.8,2106.2,81.7323]
[1617645525476,81.6673,2107.8,2107.7,5.76]
[1617645525877,81.6673,2107.8,2106.3,0.22]
[1617645526078,81.68121191,2107.8,2107.7,5.31]
[1617645526477,81.68121191,2107.8,2107.2,5.94]
[1617645526677,81.68121191,2107.8,2107.7,5.76]
[1617645527078,81.6673,2107.8,2107.3,8.83695]
[1617645527278,81.6673,2107.8,2107.7,5.97]
[1617645527479,81.68121258,2107.8,2107.7,5.97]
[1617645527680,81.68121258,2107.8,2102.3,9.18544992]
[1617645527884,81.68121258,2107.8,2107.7,5.76]
[1617645528278,81.69512665,2107.8,2106.3,5.7]
[1617645528478,83.69512665,2107.8,2107.7,5.75]
[1617645528680,83.69512665,2107.8,2107.6,3.8356]
[1617645528878,83.69512665,2107.8,2107.7,3.31]
[1617645529079,83.6673,2107.8,2107.7,3.31]
[1617645529278,83.6673,2107.8,2107.0,5.16]
[1617645529680,83.6673,2107.8,2107.7,5.77]
[1617645529878,83.6673,2107.8,2107.0,5.77]
[1617645530177,83.6673,2107.8,2107.7,5.78]
[1617645530578,0.02783658,2107.6,2107.0,5.76]
[1617645530778,0.02783658,2107.6,2106.9,2.90695]
[1617645530978,2.90695,2107.0,2106.9,2.90695]
[1617645531378,2.90695,2107.0,2106.9,8.63695]
[1617645541489,4.70855,2107.0,2106.9,8.63695]
[1617645546000,4.70855,2107.0,2106.9,5.73]
[1617645546403,4.70855,2107.0,2106.3,5.75]
[1617645546802,4.70855,2107.0,2106.9,5.88]
[1617645547003,4.70855,2107.0,2106.3,5.72]
[1617645547302,1.8016,2107.0,2106.9,5.69]
[1617645547502,0.01391852,2107.2,2106.9,5.69]
[1617645547703,74.63801858,2107.3,2106.6,2.90695]
[1617645547901,2.7382,2107.2,2107.0,5.79]
[1617645548302,2.7382,2107.2,2106.6,2.90695]
[1617645548503,2.7382,2107.2,2107.1,5.74]
[1617645548903,2.7382,2107.2,2106.6,2.90695]
[1617645549104,2.7382,2107.2,2107.1,5.79]
[1617645549304,5.64515,2107.2,2107.1,5.79]
[1617645549504,5.64515,2107.2,2106.8,2.27]
[1617645549703,5.64515,2107.2,2107.1,5.41]
[1617645550105,5.64515,2107.2,2106.9,5.82]
[1617645550304,5.64515,2107.2,2107.1,5.7]
[1617645550705,5.64515,2107.2,2107.0,5.71]
[1617645550906,5.64515,2107.2,2107.1,5.94]
[1617645551306,5.64515,2107.2,2106.9,2.90695]
[1617645551708,5.64515,2107.2,2107.1,5.79]
[1617645551907,5.64515,2107.2,2106.9,8.64695]
[1617645552107,5.64515,2107.2,2107.0,5.84]
[1617645552308,5.64515,2107.2,2106.9,2.90695]
[1617645552309,5.64515,2107.2,2107.1,5.81]
[1617645552508,5.64515,2107.2,2106.9,2.90695]
[1617645552709,59.974,2107.1,2107.0,5.96]
[1617645552909,59.974,2107.1,2106.9,2.90695]
[1617645553310,59.974,2107.1,2107.0,5.97]
[1617645561718,2.90695,2107.2,2107.0,5.97]
[1617645571932,67.6068,2107.5,2107.0,5.97]
[1617645572533,0.01389991,2107.9,2107.0,5.97]
[1617645572733,0.01389932,2108.0,2107.2,54.8955]
[1617645573133,0.01389932,2108.0,2107.3,5.93]
[1617645573333,0.01389932,2108.0,2107.7,2.90695]
[1617645573734,0.01389932,2108.0,2107.8,5.94]
[1617645574536,0.01389949,2107.9,2107.8,5.94]
[1617645575336,2.92084949,2107.9,2107.8,5.94]
[1617645575936,5.32034949,2107.9,2107.8,5.94]
[1617645576636,5.3342497,2107.9,2107.8,5.94]
[1617645576837,5.3342497,2107.9,2107.3,5.74]
[1617645577038,70.9066,2107.8,2107.3,5.74]
[1617645577237,0.01390041,2107.7,2106.5,4.77]
[1617645577438,0.01390041,2107.7,2107.4,5.7]
[1617645577638,70.92049286,2107.8,2107.4,5.7]
[1617645577838,70.92049286,2107.8,2107.2,1.65]
[1617645578038,70.92049286,2107.8,2107.5,5.69]
[1617645578438,0.01389329,2107.7,2107.1,2.90695]
[1617645578639,0.01389329,2107.7,2107.2,5.97]
[1617645578839,0.01389329,2107.7,2107.6,5.7]
[1617645579041,0.01389329,2107.7,2107.1,2.90695]
[1617645579242,0.01389329,2107.7,2107.3,5.73]
[1617645579440,0.02778683,2107.7,2107.6,5.87]
[1617645579641,0.02778683,2107.7,2107.2,5.98]
[1617645579841,0.02778683,2107.7,2107.4,5.93]
[1617645580041,0.02778683,2107.7,2107.2,5.84]
[1617645580242,77.933,2107.4,2106.6,1.63]
[1617645580441,111.7777,2107.4,2106.6,1.63]
[1617645580641,111.7777,2107.4,2104.2,2.0]
[1617645580642,33.8447,2107.4,2107.3,1.1555]
[1617645580841,33.8447,2107.4,2106.7,5.77]
[1617645581241,3.8447,2107.4,2107.3,0.0142]
[1617645581441,6.75165,2107.4,2106.8,5.64]
[1617645581642,55.0073,2107.3,2106.8,5.64]
[1617645581842,2.0,2107.2,2106.1,2.90695]
[1617645582044,0.01389656,2106.9,2106.2,0.15]
[1617645582246,0.01389656,2106.9,2106.8,5.48]
[1617645582444,0.01389612,2107.0,2106.2,5.82]
[1617645582844,0.01389567,2107.1,2106.8,5.77]
[1617645583045,0.01389567,2107.1,2106.1,2.90695]
[1617645583252,0.02779134,2107.2,2106.3,57.6704]
[1617645583253,62.22349466,2107.2,2106.3,57.6704]
[1617645583445,62.2096,2107.2,2106.9,5.72]
[1617645583646,62.2096,2107.2,2106.5,2.90695]
[1617645583846,62.2096,2107.2,2106.6,5.89]
[1617645584046,62.2096,2107.2,2107.0,5.78]
[1617645584247,62.2096,2107.2,2106.5,2.90695]
[1617645584547,62.2096,2107.2,2106.7,5.7]
[1617645584748,62.2096,2107.2,2107.1,5.77]
[1617645584948,62.2096,2107.2,2106.6,5.85]
[1617645585147,62.2096,2107.2,2106.8,5.91]
[1617645585347,62.2096,2107.2,2106.5,2.90695]
[1617645585348,62.2096,2107.2,2107.1,5.76]
[1617645585548,65.11655,2107.2,2107.0,2.90695]
[1617645585949,65.11655,2107.2,2107.1,5.81]
[1617645586150,65.11655,2107.2,2107.0,2.90695]
[1617645586552,65.11655,2107.2,2107.1,5.9]
[1617645588955,2.90695,2107.2,2107.1,5.9]
[1617645589758,0.01389824,2107.5,2107.1,5.9]
[1617645590558,0.01389766,2107.6,2107.1,5.9]
[1617645591158,0.02779532,2107.7,2107.1,5.9]
[1617645591159,0.01389728,2107.7,2107.1,5.9]
[1617645591564,0.01389728,2107.7,2107.6,2.90695]
[1617645591960,0.01389728,2107.7,2107.6,8.72695]
[1617645592359,0.97479728,2107.7,2107.6,8.72695]
[1617645592761,0.01389728,2107.7,2107.6,8.72695]
[1617645592962,58.22589456,2107.8,2107.6,8.72695]
[1617645593462,0.01390501,2107.7,2107.6,8.72695]
[1617645594264,58.22589456,2107.8,2107.6,8.72695]
[1617645594465,0.02781131,2107.7,2107.6,8.72695]
[1617645596368,58.25372262,2107.8,2107.6,8.72695]
[1617645599070,58.47662178,2107.8,2107.6,8.72695]
[1617645599769,58.1981,2107.8,2107.6,8.72695]
[1617645600171,0.05570172,2107.7,2107.6,8.72695]
[1617645600972,0.27851567,2107.8,2107.7,65.631]
[1617645601170,0.27851567,2107.8,2107.7,67.3761]
[1617645601370,0.27848515,2107.9,2107.7,73.0861]
[1617645601571,0.44557624,2108.0,2107.7,8.4027]
[1617645601772,0.02784528,2108.1,2107.9,65.6033]
[1617645601972,0.02784315,2108.3,2107.9,65.6033]
[1617645602371,0.0278399,2108.6,2108.0,5.72]
[1617645602571,3.99e-05,2108.6,2108.0,5.72]
[1617645602773,3.73147384,2110.0,2108.0,5.72]
[1617645602971,2.78677384,2110.0,2108.0,7.72]
[1617645603271,0.44534569,2109.3,2108.8,55.9198]
[1617645603572,2.90695,2109.3,2109.2,2.90695]
[1617645604171,0.44529562,2109.6,2109.3,5.93]
[1617645604371,0.44529562,2109.6,2109.3,2.6634]
[1617645604772,0.44529562,2109.6,2109.3,8.4134]
[1617645605172,0.44527616,2109.7,2109.3,8.4134]
[1617645605572,0.44527616,2109.7,2109.6,76.28645]
[1617645605773,3.35220384,2109.8,2109.6,76.28645]
[1617645605973,3.35220384,2109.8,2109.6,82.02645]
[1617645606172,2.90695,2109.8,2109.6,82.02645]
[1617645606975,1.0,2109.9,2109.6,8.64695]
[1617645607576,0.9364,2109.9,2109.6,8.64695]
[1617645607777,2.90695,2110.7,2109.6,8.64695]
[1617645607977,2.90695,2110.7,2110.2,76.5509]
[1617645608176,2.90695,2110.7,2110.3,5.89]
[1617645608978,2.90695,2110.7,2110.3,4.9536]
[1617645609781,2.90695,2110.7,2110.6,2.90695]
[1617645610182,0.44383591,2111.3,2110.6,8.60695]
[1617645610380,0.44383591,2111.3,2110.7,70.2292]
[1617645610583,0.44401639,2111.2,2110.7,71.9543]
[1617645610781,0.44401639,2111.2,2110.8,5.7]
[1617645611181,0.9484,2111.3,2110.8,5.7]
[1617645611182,1.39240871,2111.3,2110.8,5.7]
[1617645611681,0.44398096,2111.2,2111.1,2.90695]
[1617645611883,60.74938096,2111.2,2111.1,2.90695]
[1617645612085,60.74938096,2111.2,2111.1,3.37695]
[1617645612685,61.68588096,2111.2,2111.1,3.37695]
[1617645612884,1.38048096,2111.2,2111.1,3.37695]
[1617645613284,0.44398096,2111.2,2111.1,3.37695]
[1617645613484,0.44397434,2111.3,2111.1,3.37695]
[1617645613684,2.90695,2111.2,2111.1,3.37695]
[1617645614285,3.35092826,2111.2,2111.1,0.47]
[1617645614685,3.35092826,2111.2,2110.9,5.68]
[1617645615086,0.35092826,2111.2,2111.1,5.85]
[1617645615287,0.6659767,2111.4,2111.1,5.85]
[1617645615488,0.6659767,2111.4,2110.9,5.82]
[1617645615688,0.6659767,2111.4,2110.8,60.8272]
[1617645615689,0.6659767,2111.4,2111.1,5.96]
[1617645615987,0.66599465,2111.3,2111.0,2.90695]
[1617645616288,0.66599512,2111.4,2111.1,5.93]
[1617645616892,32.0,2111.6,2111.1,5.93]
[1617645617090,63.1973,2111.2,2110.9,5.7]
[1617645617290,66.9545,2111.2,2110.9,5.7]
[1617645617490,66.9545,2111.2,2111.1,5.76]
[1617645617691,101.86145,2111.2,2111.1,5.76]
[1617645617891,100.92795,2111.2,2111.0,5.79]
[1617645618090,100.92795,2111.2,2111.1,5.64]
[1617645618489,100.92795,2111.2,2110.3,2.90695]
[1617645618691,100.92795,2111.2,2111.1,5.96]
[1617645619091,100.92795,2111.2,2110.3,2.90695]
[1617645619291,100.92795,2111.2,2111.1,5.81]
[1617645619692,100.92795,2111.2,2110.4,5.82]
[1617645619891,2.90695,2110.5,2110.3,2.90695]
[1617645620091,6.57195,2110.5,2110.4,5.75]
[1617645620291,5.61065,2110.5,2110.4,5.75]
[1617645621193,2.90695,2110.5,2110.4,5.75]
[1617645622994,2.90695,2110.5,2110.0,5.75]
[1617645623195,5.20765,2110.5,2110.0,5.75]
[1617645623397,5.20765,2110.5,2110.4,5.96]
[1617645623796,5.20765,2110.5,2110.1,5.71]
[1617645623997,5.20765,2110.5,2110.4,5.92]
[1617645624396,2.90695,2110.5,2110.1,5.87]
[1617645624596,2.90695,2110.5,2110.4,5.87]
[1617645624998,2.90695,2110.5,2110.1,5.87]
[1617645625198,2.90695,2110.5,2110.4,5.88]
[1617645625599,2.90695,2110.5,2110.1,5.91]
[1617645625801,2.90695,2110.2,2110.0,2.90695]
[1617645626201,3.85725,2110.2,2110.1,5.96]
[1617645627101,3.85725,2110.2,2109.3,5.93]
[1617645627502,3.85725,2110.2,2110.1,5.68]
[1617645627701,3.85725,2110.2,2109.3,5.93]
[1617645627902,0.9503,2110.2,2109.7,2.90695]
[1617645628103,0.9503,2110.2,2110.1,5.78]
[1617645628304,0.9503,2110.2,2109.8,5.92]
[1617645628606,0.9503,2110.2,2110.1,5.75]
[1617645628904,0.9503,2110.2,2109.8,5.87]
[1617645629906,2.90695,2109.9,2109.8,5.87]
[1617645636416,17.90695,2109.9,2109.8,5.87]
[1617645641721,74.0015,2109.8,2109.0,5.84]
[1617645641921,76.5407,2109.8,2108.0,74.9345]
[1617645642120,76.5407,2109.8,2108.4,5.8]
[1617645642321,76.5407,2109.8,2109.1,5.78]
[1617645642522,106.5407,2109.8,2109.1,5.78]
[1617645642721,106.5407,2109.8,2108.5,5.73]
[1617645642922,106.5407,2109.8,2109.2,5.76]
[1617645643321,106.5407,2109.8,2108.6,5.27]
[1617645643522,106.5407,2109.8,2109.3,5.86]
[1617645643924,2.90695,2109.4,2108.7,7.48695]